Cogmind - Beta 15 @@@ ROGUE MODE // 2025.09.16 @ 11:50:13 Player: Petvaria Result: Destroyed by D-53 Grenadier with Mini Grenade Launcher Performance ------------- Evolutions (0) 0 Regions Visited (2) 400 Robots Destroyed (10) 50 Value Destroyed (211) 211 Prototype IDs (0) 0 Alien Tech Used (0) 0 Bonus (0) 0 TOTAL SCORE: 661 Bonus ------- None Cogmind --------- Core Integrity 0/250 Matter 231/300 Energy 99/100 System Corruption 0% Temperature Cool (0) Movement Core (50) Location -10/Mines Parts ------- > --- POWER (1) -------- (None) > --- PROPULSION (2) --- (None) > --- UTILITY (2) ------ (None) > --- WEAPON (2) ------- (None) > --- INVENTORY (5) ---- Light Ion Engine Hacking Suite Peak State ------------ > --- POWER ------------ Light Nuclear Core > --- PROPULSION ------- Light Treads Light Treads > --- UTILITY ---------- Small Storage Unit Light Armor Plating > --- WEAPON ----------- Medium Laser Assault Rifle > --- INVENTORY -------- Light Ion Engine Aluminum Leg Wheel Compact Wheel Light Armor Plating Light Armor Plating Hacking Suite Light Assault Rifle [Rating: 10] Favorites ----------- Power Light Nuclear Core Engine Light Ion Engine Power Core Light Nuclear Core Propulsion Light Treads Treads Light Treads Wheel Wheel Utility Small Storage Unit Storage Small Storage Unit Protection Light Armor Plating Weapon Medium Laser Energy Gun Medium Laser Ballistic Gun Assault Rifle Launcher Grenade Launcher Build | -11 -10 -10 ------- Run | Yrd Mat Min Slots Evolved . | . . . Power . | . . . Propulsion . | . . . Utility . | . . . Weapon . | . . . Parts Attached 15 | 5 4 6 Power 2 | . 2 . Engine 1 | . 1 . Core 1 | . 1 . Reactor . | . . . Propulsion 5 | 2 1 2 Treads 3 | 2 1 . Leg . | . . . Wheel 2 | . . 2 Hover . | . . . Flight . | . . . Utility 4 | 1 1 2 Device . | . . . Storage 1 | 1 . . Processor . | . . . Hackware . | . . . Protection 3 | . 1 2 Artifact . | . . . Weapon 4 | 2 . 2 Energy Gun 1 | 1 . . Energy Cannon . | . . . Ballistic Gun 2 | 1 . 1 Ballistic Cannon . | . . . Launcher 1 | . . 1 Special Weapon . | . . . Impact Weapon . | . . . Slashing Weapon . | . . . Piercing Weapon . | . . . Special Melee Weapon . | . . . Unidentified Prototypes . | . . . Parts Lost 13 | . . 13 Power 1 | . . 1 Propulsion 4 | . . 4 Utility 4 | . . 4 Weapon 4 | . . 4 Highest Loss Streak 13 | . . 13 To Critical Strikes . | . . . Average Backups 7 | 4 7 7 Power 1 | 1 1 1 Propulsion 2 | 2 3 1 Utility 2 | . 2 2 Weapon 1 | . 1 1 Tool/Special . | . . . Unused Backups 5 | . 3 2 Power 1 | . . 1 Propulsion 2 | . 2 . Utility 1 | . . 1 Weapon 1 | . 1 . Tool/Special . | . . . Average Slot Usage (%) 94 | . 95 93 Engine 6 | . 9 . Core 6 | . 4 12 Treads 20 | . 28 4 Wheel 7 | . . 22 Storage 14 | . 14 14 Protection 11 | . 10 12 Energy Gun 13 | . 14 11 Ballistic Gun 10 | . 14 2 Launcher 3 | . . 11 Peak Build Rating 10 | 5 10 10 Average Rating 8 | 3 8 9 On Entrance 5 | . 5 10 Naked Turns . | . . . Heaviest Build 18 | 9 17 18 Greatest Support 40 | 40 40 26 Greatest Overweight (x) 1 | . . 1 Average Overweight (x) . | . . . Largest Inventory Capacity 8 | 8 8 8 Average Capacity 7 | 6 8 8 Most Carried 8 | 7 8 8 Average Carried 7 | 4 7 7 Final Capacity 8 | 8 8 5 Final Carried 8 | 7 8 2 Class Distribution -------------------- 100% | Mutant Dominant Class ---------------- Mutant | -10/Materials Mutant | -10/Mines Resources | -11 -10 -10 ----------- Run | Yrd Mat Min Matter Collected 453 | 204 179 70 Remotely . | . . . Salvage Created 348 | . 315 33 Parts 27 | . 27 . Haulers Intercepted . | . . . Recyclers Shooed 1 | . 1 . Parts Field Recycled . | . . . Retrieved Matter . | . . . Parts Self-Destructed . | . . . Prevented . | . . . Kills | -11 -10 -10 ------- Run | Yrd Mat Min Combat Hostiles Destroyed 24 | . 8 16 Guns 10 | . 8 2 AOE 14 | . . 14 Classes Destroyed 5 | . 4 1 Recycler 1 | . 1 . Operator 1 | . 1 . Swarmer 4 | . 4 . Grunt 4 | . 4 . Assembled 16 | . . 16 Best Kill Streak 16 | . 3 16 Combat Bots Only 16 | . 2 16 Max Kills in Single Turn 3 | . 2 3 Gunslinging 1 | . 1 . Exploded 3 | . . 3 Melee . | . . . Uniques/NPCs Destroyed . | . . . Combat | -11 -10 -10 -------- Run | Yrd Mat Min Hostile Shots Fired 137 | . 44 93 Missed 39 | . 16 23 Hits 98 | . 28 70 Melee 4 | . . 4 Projectile 94 | . 28 66 AOE 7 | . . 7 Critical Strikes 1 | . . 1 Part Disruptions 2 | . . 2 Damage Taken 1510 | . 293 1217 Core 262 | . 28 234 Absorbed by Shields . | . . . Core Remaining (%) 100 | 100 . . Volleys Fired 48 | . 31 17 Largest 2 | . 2 2 Hottest 70 | . 70 40 Shots Fired 85 | . 62 23 Gun 75 | . 62 13 Cannon . | . . . Launcher 10 | . . 10 Special . | . . . Kinetic 44 | . 31 13 Thermal 31 | . 31 . Explosive 10 | . . 10 Electromagnetic . | . . . Robot Hit Streak 6 | . 6 3 Robot Miss Streak 4 | . 2 4 Penetration Max . | . . . Secondary Targets 2 | . 1 1 Max Gunslinging Chain 1 | . 1 1 Shots Hit Robots 48 | . 39 9 Core Hits 54 | . 17 37 Critical Kills . | . . . Critical Parts Destroyed . | . . . Critical Strikes 3 | . 3 . Burn 3 | . 3 . Melee Attacks . | . . . Impact . | . . . Slashing . | . . . Piercing . | . . . Sneak Attacks . | . . . Combat Hostiles . | . . . Follow-up Attacks . | . . . Damage Inflicted 1481 | . 474 1007 Guns 542 | . 474 68 Cannons . | . . . Explosions 938 | . . 938 Melee . | . . . Ramming 1 | . . 1 Kinetic 294 | . 226 68 Thermal 248 | . 248 . Explosive 938 | . . 938 Electromagnetic . | . . . Impact . | . . . Slashing . | . . . Piercing . | . . . Highest Corruption . | . . . Average Corruption . | . . . Corruption Purged . | . . . Corruption Blocked . | . . . Overload Shots . | . . . Overflow Damage 53 | . . 53 Projectiles . | . . . Explosions 53 | . . 53 Melee . | . . . Knockbacks . | . . . Impact . | . . . Kinetic . | . . . Secondary . | . . . Self-Inflicted Damage 80 | . . 80 Shots 3 | . . 3 Rammed 4 | . . 4 Targets Rammed 4 | . . 4 Kicked . | . . . Crushed . | . . . Highest Temperature 243 | . 243 55 Average Temperature 55 | . 65 19 Received Heat Transfer 303 | . 123 180 Siege Activations . | . . . Martial Activations . | . . . Shielding Activations . | . . . Robots Disrupted . | . . . Combat Hostiles . | . . . Robots Corrupted . | . . . Combat Hostiles . | . . . Parts Fried . | . . . Impact Corruptions . | . . . Robots Melted . | . . . Combat Hostiles . | . . . Parts Melted . | . . . Heat Transferred 962 | . 962 . Parts Sabotaged . | . . . Parts Stolen . | . . . Parts Stripped . | . . . Power Chain Reactions . | . . . Alert | -11 -10 -10 ------- Run | Yrd Mat Min Maximum Alert Level . | . . . Low Security (%) 100 | 100 100 100 Level 1 . | . . . Level 2 . | . . . Level 3 . | . . . Level 4 . | . . . Level 5 . | . . . High Security . | . . . Max Security . | . . . Peak Influence 81 | . 81 21 Initial 12 | . . 12 Average 12 | . 19 1 Influence Increases 307 | . 256 51 Destroy 0b10 Robot/C 160 | . 160 . Destroy 0b10 Robot/NC 10 | . 10 . Destroy Leader 40 | . 40 . Destroy Structure 52 | . 1 51 Partial Spotted 15 | . 15 . Lose Combat Pursuer 30 | . 30 . Influence Decreases 307 | . 223 84 Entered New Map 21 | . . 21 Time Decay 245 | . 223 22 Lost Part 41 | . . 41 Squads Dispatched 2 | . 2 . Investigation . | . . . Extermination . | . . . Reinforcement 2 | . 2 . Assault . | . . . Garrison . | . . . Intercept . | . . . Searches Triggered . | . . . Construction Impeded . | . . . Haulers Reinforced . | . . . Active Scanning Responses . | . . . Cargo Convoy Interrupts . | . . . Stealth | -11 -10 -10 --------- Run | Yrd Mat Min Distress Signals 1 | . . 1 Communications Jammed . | . . . Distress Signals . | . . . Times Spotted 38 | . 17 21 Peak Tracking Total 16 | . 4 16 Tactical Retreats 3 | . 1 2 Traps | -11 -10 -10 ------- Run | Yrd Mat Min Traps Triggered . | . . . Indirectly . | . . . Trap Hack Attempts . | . . . Triggered . | . . . Disarmed . | . . . Reprogrammed . | . . . Reused . | . . . Traps Extracted . | . . . Installed . | . . . Triggered . | . . . Machines | -11 -10 -10 ---------- Run | Yrd Mat Min Machines Disabled 1 | . 1 . Max in Single Turn 1 | . 1 . Machines Repaired . | . . . Machines Dismantled . | . . . Machines Sabotaged . | . . . Overloaded Fab Kills . | . . . Hacking | -11 -10 -10 --------- Run | Yrd Mat Min Machines Accessed . | . . . Terminals . | . . . Fabricators . | . . . Repair Stations . | . . . Recycling Units . | . . . Scanalyzers . | . . . Garrison Access . | . . . Total Hacks . | . . . Successful . | . . . Failed . | . . . Catastrophic . | . . . Database Lockouts . | . . . Manual . | . . . Terminals . | . . . Fabricators . | . . . Repair Stations . | . . . Recycling Units . | . . . Scanalyzers . | . . . Garrison Access . | . . . Terminal Hacks . | . . . Fabricator Hacks . | . . . Repair Station Hacks . | . . . Recycling Unit Hacks . | . . . Scanalyzer . | . . . Garrison Access Hacks . | . . . Unauthorized Hacks . | . . . Terminals . | . . . Fabricators . | . . . Repair Stations . | . . . Recycling Units . | . . . Scanalyzers . | . . . Garrison Access . | . . . Data Cores Recovered . | . . . Used . | . . . Hacking Detections . | . . . Full Trace Events . | . . . Feedback Events . | . . . Feedback Blocked . | . . . Robot Schematics Acquired . | . . . Robots Built . | . . . Authchips . | . . . Time . | . . . Total Robot Build Rating . | . . . Part Schematics Acquired . | . . . Parts Built . | . . . Authchips . | . . . Time . | . . . Total Part Build Rating . | . . . Parts Repaired . | . . . Time . | . . . Parts Recycled . | . . . Recycled Matter . | . . . Retrieved Matter . | . . . Retrieved Components . | . . . Parts Scanalyzed . | . . . Part Schematics Acquired . | . . . Parts Damaged . | . . . Bothacking | -11 -10 -10 ------------ Run | Yrd Mat Min Used RIF Installer . | . . . Robots Hacked . | . . . Non-combat . | . . . Combat . | . . . Robot Hacks Applied . | . . . Relay Couplers Released . | . . . Fabnet Peak Effective % . | . . . Robots Rewired . | . . . Allies Hacked . | . . . Hacks Repelled . | . . . Allies | -11 -10 -10 -------- Run | Yrd Mat Min Total Allies . | . . . Largest Group . | . . . Highest-Rated Group . | . . . Highest-Rated Ally . | . . . Total Orders . | . . . Ally Attacks . | . . . Total Damage . | . . . Kills . | . . . Allies Corrupted . | . . . Allies Melted . | . . . Intel | -11 -10 -10 ------- Run | Yrd Mat Min Active Infowar (turns) . | . . . Robot Analysis Total . | . . . Derelict Logs Recovered . | . . . Drone Launches . | . . . Drone Recoveries . | . . . Exploration | -11 -10 -10 ------------- Run | Yrd Mat Min Turns Passed 1276 | 107 792 377 Spaces Moved 773 | 62 414 297 Core 10 | 7 . 3 Treads 484 | 55 414 15 Legs . | . . . Wheels 279 | . . 279 Hover . | . . . Flight . | . . . Fastest Speed 50 | 50 160 90 Average Speed 133 | 147 160 93 Slowest Speed 160 | 160 160 160 Overloaded Moves . | . . . Propulsion Burnouts . | . . . Robots Hopped . | . . . Potential Cave-ins 1 | . . 1 Cave-ins Triggered . | . . . Exploration Rate (%) 41 | 5 63 55 Regions Visited 2 Branch Regions 1 Pre-discovered Areas . | . . . Known Exits Taken . | . . . Unknown Exits Taken 2 | 1 1 . Scrap Searched 1 | . . 1 Spaces Dug . | . . . Terrain Destroyed 56 | . . 56 Melee . | . . . Projectile . | . . . AOE 56 | . . 56 Terrain Rammed . | . . . Walls Destroyed . | . . . Machines Disabled . | . . . Actions | -11 -10 -10 --------- Run | Yrd Mat Min Total 933 | 78 484 371 Wait 69 | . 25 44 Move 771 | 61 413 297 Hop . | . . . Pick Up 18 | 12 6 . Fast Attach . | . . . Attach 13 | 5 2 6 Detach . | . . . Swap 5 | . 2 3 Drop 5 | . 5 . Fire 48 | . 31 17 Melee . | . . . Ram . | . . . Kick . | . . . Crush 4 | . . 4 Escape Stasis . | . . . Rewire . | . . . Trap . | . . . Miscellaneous . | . . . Route ------- -11/Scrapyard -10/Materials (discovered 2 exits: [*Mat] / [*Min]) -10/Mines (discovered 3 exits: [*Mat x2] / [*Exi]) History --------- Turn | Location | Event 5 | -11/Scrapyard | Discovered new exit (range 16) 108 | -11/Scrapyard | Entered Materials 306 | -10/Materials | Build established: Mutant 499 | -10/Materials | Discovered new exit (range 14) 593 | -10/Materials | Discovered new exit (range 16) 900 | -10/Materials | Entered Mines 955 | -10/Mines | Discovered new exit (range 6) 984 | -10/Mines | Discovered new exit (range 7) 1147 | -10/Mines | Deemed a non-threat by the Exiles lab entrance 1147 | -10/Mines | Discovered new exit (range 5) 1191 | -10/Mines | Assembled infested the area 1211 | -10/Mines | Core integrity fell below 50% 1258 | -10/Mines | Destroyed 16 combat bots 1276 | -10/Mines | Core integrity fell below 20% 1277 | -10/Mines | Destroyed by D-53 Grenadier with Mini Grenade Launcher Last Messages --------------- U-05 Engineer lays Concrete. U-05 Engineer builds a Wall. U-05 Engineer lays Concrete. U-05 Engineer sends out distress signal. U-05 Engineer lays Concrete. C-30 ARC bursts open, deploying its payload. D-53 Grenadier unfolds itself. U-05 Engineer builds a Wall. Acquired 40 matter. as-34831 destroyed. as-64380 destroyed. Lgt. Treads destroyed. Lgt. Armor Plating destroyed. K-01 Serf destroyed. U-05 Engineer lays Concrete. K-01 Serf collects debris. U-05 Engineer lays Concrete. Lgt. Treads destroyed. U-05 Engineer lays Concrete. Sml. Storage Unit destroyed. Map ----- +----------------------------------------------------+ | ???????????????????????????????????? | | ???????????????????????????????????? | | ???????????????????????????????????? | | ???????????????????????????????????? | | ???????????????????????????????????? | | ???????????????????????????????????? | | ???????????????????????????????????? | | ???????????????????????????????????? | | ???????????????????????????????????? | | ???????????????????????????????????? | | ???????????????????????????????????? | | ???????????????????????????????????? | | ???????????????????????????????????? | | ???????????????????????????????????? | | ????????????? ?????????????????????? | | ????????????? ?????????????????????? | | ????????????# #???? #??????????????? | | ???????????? ##?#"#??????????????? | | ???????????? ## ##?????????????? | | ???????????? ##????????????? | | ???????????? #????????????? | | ????????????? ?????????????? | | ????????##### k ???????????????? | | ????##### # # %##????????????????? | | ???## dd# #????????????????? | | ???# @ r # ##???????????????? | | ???# #???????????????? | | ???# ###?????????????? | | ???## #?????????????? | | ????## u*#####??????????? | | ?????# %!## #??????????? | | ?????## # ###????????? | | ??????###### % # #????????? | | ???????????### # # % ##???????? | | ???????????## #???????? | | ???????????# ###??????? | | ??????????## #??????? | | ?????????## u #??????? | | ?????????# # #?????? | | ?????????# # # #?????? | | ?????????# ####?###???????? | | ?????????## ##?????????????# | | ??????????### #####?????????# | | ????????????### ##????????# | | ??????????????## ########## | | ???????????????## | | ????????????????##### | | ????????????????????### ######### | | ??????????????????????## ##???????# | | ???????????????????????####????????? | +----------------------------------------------------+ Best States ------------- Heat Dissipation 25 Energy Generation 14 Energy Capacity 160 Matter Stores 300 Matter Capacity 300 Sight Range 16 Terrain Scan Density 10 Armor Coverage 150 Evasion (%) 42 Recoil Reduction 2 Item Schematics ----------------- None Robot Schematics ------------------ None Fabricated ------------ Nothing Repaired ---------- Nothing Alien Tech Used ----------------- None Achievements -------------- Exterminator Challenges ------------ None Game ------ Seed ReactiveCloakInjector Manual? 1 Play Time 00:11:15 Cumulative 218.9 hours Start 2025.09.16 @ 11:39:06 End 2025.09.16 @ 11:50:13 Sessions 1 Manual Loads 0 Difficulty Rogue Special Mode None Game No. 192 Rogue 192 Adventurer 0 Explorer 0 Win Type - Total 12 Types 6/0/2/2/1/0/0/0/0/1 Lore% 93 Gallery% 85 Achievement% 71 Wizard Run 0 Options --------- Layout 1 ASCII 0 Keyboard 0 Movement Numpad Keybinds 0 Fullscreen 1 Font 24/Proggy Map View 50x35 Zoom Use 0% Tactical HUD 0 Map Filters NONE Filters NONE Steam 1 RUN: a5de8ffe-53c0-48c5-8359-d36159001cdf